bitfinex-derivatives/quotes_ETHF0:USTF0_20250904
["timestamp","ask_amount","ask_price","bid_price","bid_amount"]
[1757002582665,2.332,4306.9,4306.8,33.6994]
[1757002582860,1.4118,4306.9,4306.8,33.6994]
[1757002583259,1.4118,4306.9,4306.8,32.266]
[1757002584761,3.7679,4307.0,4306.4,0.9117]
[1757002584762,3.8601,4306.5,4306.4,0.9117]
[1757002584964,3.8601,4306.5,4306.4,1.1507]
[1757002586160,3.8601,4306.5,4306.4,0.9117]
[1757002586360,3.8601,4306.5,4306.1,1.85134]
[1757002586361,1.4118,4306.4,4306.2,0.41793]
[1757002586561,1.4118,4306.4,4306.3,0.65693]
[1757002586870,3.3,4306.4,4306.3,1.56863]
[1757002587070,3.3,4306.4,4306.3,2.47763]
[1757002587366,3.3,4306.4,4306.3,3.91103]
[1757002587967,3.3,4306.4,4306.3,0.65693]
[1757002588368,3.3,4306.4,4306.3,1.56863]
[1757002588771,3.3,4306.4,4306.3,1.1507]
[1757002588965,2.4483,4306.0,4305.9,1.32966]
[1757002589158,3.8601,4306.0,4305.9,2.47766]
[1757002589359,3.8601,4306.0,4305.9,2.23866]
[1757002589563,3.3,4306.0,4305.9,3.91106]
[1757002589766,2.332,4306.0,4305.9,3.91106]
[1757002592973,0.9202,4306.3,4306.2,3.67204]
[1757002593174,3.2078,4306.4,4306.3,3.67203]
[1757002594178,3.2078,4307.0,4306.9,3.67197]
[1757002594472,3.3,4307.4,4307.3,1.8207]
[1757002594767,3.3,4307.4,4307.3,1.1507]
[1757002595071,3.3,4307.4,4306.5,1.9956]
[1757002595275,3.8601,4307.0,4306.9,0.41786]
[1757002595476,3.8601,4307.0,4306.9,0.65686]
[1757002596371,3.8601,4307.0,4306.8,0.41788]
[1757002596578,3.8601,4307.0,4306.6,0.41789]
[1757002596776,1.4118,4306.7,4306.1,3.2078]
[1757002596974,1.8882,4306.3,4306.2,1.56764]
[1757002597172,3.3,4306.3,4306.2,1.56764]
[1757002597576,3.3,4306.3,4306.2,3.91004]
[1757002597877,3.3,4306.3,4306.2,1.56764]
[1757002598079,3.3,4306.3,4306.2,0.65594]
[1757002598476,1.4118,4306.2,4306.1,3.2078]
[1757002598770,1.4118,4306.2,4306.1,3.4458]
[1757002598977,3.3,4306.2,4306.1,4.77544]
[1757002600276,3.3,4306.2,4305.7,1.85138]
[1757002600482,3.3,4305.9,4305.8,1.56767]
[1757002600781,3.3,4305.9,4305.8,3.91007]
[1757002600966,4.6881,4306.5,4306.4,0.41791]
[1757002601173,3.3,4306.9,4306.8,2.23857]
[1757002601373,3.3,4306.9,4306.8,2.0587]
[1757002601572,3.3,4306.9,4306.8,1.1497]
[1757002602177,3.3,4306.9,4306.8,0.238]
[1757002602679,1.5444,4306.8,4306.5,1.8513]
[1757002602874,3.3,4306.6,4306.5,1.3296]
[1757002603073,3.3,4306.6,4306.5,1.5676]
[1757002603580,1.5444,4306.8,4306.1,3.2078]
[1757002603581,1.8882,4306.3,4306.1,3.2078]
[1757002603775,3.3,4306.2,4306.1,3.62574]
[1757002603976,3.3,4306.2,4306.1,3.86374]
[1757002604177,3.3,4306.2,4306.1,4.77544]
[1757002605484,1.4118,4306.6,4306.4,0.41792]
[1757002605680,3.8764,4306.8,4306.7,3.67199]
[1757002605877,3.3,4306.8,4306.7,3.90999]
[1757002606584,3.3,4306.8,4306.7,1.56759]
[1757002606783,3.3,4306.8,4306.7,2.47659]
[1757002608683,3.3,4306.8,4306.7,3.92079]
[1757002609087,5.5253,4307.1,4307.0,3.75546]
[1757002609280,5.5253,4307.1,4307.0,3.99346]
[1757002609478,6.4278,4307.1,4307.0,3.99346]
[1757002610087,6.4278,4307.1,4307.0,2.54926]
[1757002610883,6.4278,4307.1,4306.7,2.08073068]
[1757002611186,3.22,4306.8,4306.7,0.41789]
[1757002611379,3.22,4306.8,4306.7,2.73662068]
[1757002611781,3.22,4306.8,4306.7,0.98313068]
[1757002611983,3.22,4306.8,4306.7,0.238]
[1757002612887,1.864,4306.3,4306.2,0.41793]
[1757002613088,6.4278,4306.3,4306.2,0.65593]
[1757002613284,6.4278,4306.3,4306.2,1.1539]
[1757002613484,0.5588,4306.0,4305.6,6.11724414]
[1757002613684,3.22,4305.7,4305.6,7.45113414]
[1757002613886,3.22,4305.7,4305.6,7.68913414]
[1757002614087,3.22,4305.7,4305.6,4.77969]
[1757002614295,2.3175,4306.2,4306.1,3.75553]
[1757002614593,2.3175,4306.2,4306.1,3.99353]
[1757002614791,3.22,4306.2,4306.1,1.24053]
[1757002615494,3.22,4306.2,4305.6,3.2078]
[1757002615495,3.22,4305.7,4305.6,5.1012]
[1757002615692,3.22,4305.7,4305.6,5.3392]
[1757002615896,3.22,4305.7,4305.6,5.75719]
[1757002617092,3.22,4305.7,4305.6,5.51919]
[1757002617299,3.22,4305.7,4305.6,0.238]
[1757002617499,3.22,4305.7,4305.6,0.65599]
[1757002617689,3.22,4305.7,4305.6,1.57189]
[1757002617991,3.22,4305.7,4305.6,0.238]
[1757002618190,2.3175,4305.7,4305.6,2.54939]
[1757002618394,2.3175,4305.7,4305.6,3.88019]
[1757002618696,2.3175,4305.7,4305.6,2.54939]
[1757002619791,3.22,4305.7,4305.6,2.54939]
[1757002620291,3.22,4305.7,4305.6,0.65599]
[1757002621593,3.22,4305.7,4305.2,34.94144414]
[1757002621793,3.7788,4305.5,4305.4,0.41801]
[1757002622194,3.7788,4305.5,4305.4,0.65601]
[1757002622395,1.356,4305.5,4305.4,3.88021]
[1757002622593,3.7788,4306.0,4305.9,2.31136]
[1757002622893,2.8763,4306.0,4305.9,2.54936]
[1757002623103,2.3175,4306.0,4305.9,3.88016]
[1757002623294,3.7788,4306.0,4305.9,1.33386]
[1757002623499,3.7788,4306.0,4305.9,0.65596]
[1757002623698,2.8173,4305.5,4305.4,0.9159]
[1757002623905,3.7788,4305.5,4305.4,1.1539]
[1757002624197,3.7788,4305.5,4305.4,0.238]
[1757002624403,3.22,4305.4,4305.3,1.33392]
[1757002624593,3.22,4305.4,4305.3,1.57192]
[1757002624793,0.5588,4306.0,4305.9,0.41796]
[1757002624994,3.7788,4306.0,4305.9,0.65596]
[1757002625606,3.7788,4306.0,4305.9,2.54936]
[1757002626000,3.7788,4306.0,4305.9,0.238]
[1757002626201,3.7788,4306.0,4305.9,0.41796]
[1757002626401,3.7788,4306.0,4305.9,0.238]
[1757002626601,2.2585,4305.4,4305.3,1.33392]
[1757002626802,3.22,4305.4,4305.3,1.57192]
[1757002627105,1.356,4305.3,4305.2,32.032]
[1757002627303,4.5638,4305.3,4305.2,32.27]
[1757002628312,1.356,4304.6,4304.5,3.2078]
[1757002628502,1.356,4304.6,4304.5,4.1237]
[1757002628503,3.22,4304.6,4304.5,4.1237]
[1757002628705,3.22,4304.6,4304.5,4.3617]
[1757002629398,3.22,4304.6,4304.5,4.1237]
[1757002629600,1.864,4304.4,4304.3,0.41811]
[1757002629811,3.22,4304.4,4304.3,0.41811]
[1757002630300,3.22,4304.4,4304.3,0.65611]
[1757002630500,3.22,4304.4,4304.3,0.41811]
[1757002630700,3.22,4304.4,4304.3,0.65611]
[1757002631616,3.22,4304.4,4304.3,1.57201]
[1757002633711,3.22,4304.4,4304.3,1.33401]
[1757002633913,3.22,4304.4,4303.7,0.65617]
[1757002634213,0.5588,4304.5,4303.7,0.65617]
[1757002634214,3.22,4303.8,4303.7,0.238]
[1757002634605,3.22,4303.8,4303.7,1.1539]
[1757002635012,3.22,4303.8,4303.7,0.238]
[1757002637111,3.22,4303.8,4303.4,0.4182]
[1757002637311,3.22,4303.3,4303.2,0.41821]
[1757002637512,3.22,4303.3,4303.2,0.238]
[1757002641013,6.4278,4303.3,4303.2,0.238]
[1757002641813,2.8253,4303.2,4303.1,0.238]
[1757002642018,4.2477,4303.2,4303.1,0.238]
[1757002642613,4.2477,4303.2,4303.1,2.0918]
[1757002642815,3.3149,4303.2,4303.1,3.3951]
[1757002643416,4.2477,4303.2,4303.1,2.0918]
[1757002643618,4.2477,4303.2,4303.1,1.1868]
[1757002643819,4.2477,4303.2,4303.1,2.0918]
[1757002644018,0.5575,4303.0,4302.8,0.17662712]
[1757002644224,3.7888,4302.0,4301.9,1.8538]
[1757002644416,6.9966,4302.0,4301.9,2.32425]
[1757002644722,6.9966,4302.0,4301.9,2.0918]
[1757002645108,6.9966,4302.0,4301.9,1.8538]
[1757002645320,6.9966,4302.0,4301.9,2.51015]
[1757002646419,6.9966,4302.0,4301.9,1.1868]
[1757002646621,6.9966,4302.0,4301.9,0.238]
[1757002646817,6.9966,4302.0,4301.7,32.47036]
[1757002647120,6.9966,4302.0,4301.7,32.052]
[1757002647121,3.2313,4301.8,4301.7,32.052]
[1757002647314,3.2313,4301.8,4301.7,32.29]
[1757002647924,3.2313,4301.8,4301.7,30.5476]
[1757002650418,1.4224,4301.8,4301.7,31.8509]
[1757002650815,1.4224,4302.0,4301.9,3.1571]
[1757002651022,3.7888,4302.0,4301.9,2.0918]
[1757002651918,1.4224,4302.5,4302.4,3.5754]
[1757002652113,2.3664,4303.0,4302.9,0.9488]
[1757002652317,2.3664,4303.0,4302.6,0.41828]
[1757002652318,2.3664,4303.0,4302.8,0.238]
[1757002652620,2.3664,4303.0,4302.9,0.238]
[1757002652821,3.7888,4303.0,4302.9,0.238]
[1757002653013,3.7888,4303.0,4301.8,1.3437562]
[1757002653218,3.7888,4302.0,4301.9,2.0918]
[1757002653521,2.856,4302.0,4301.9,2.0918]
[1757002654120,2.2985,4302.4,4302.3,1.8538]
[1757002654316,3.2313,4302.4,4302.3,2.51011]
[1757002655027,3.2313,4302.4,4301.2,0.9488]
[1757002655028,3.2313,4301.3,4301.2,0.9488]
[1757002655520,3.2313,4301.3,4301.1,0.238]
[1757002655722,3.2313,4301.3,4300.8,0.41845]
[1757002656026,3.2313,4301.3,4301.2,0.238]
[1757002656426,3.2313,4300.9,4300.8,1.36725]
[1757002656614,3.2313,4300.9,4300.8,2.51025]
[1757002656818,3.2313,4300.9,4300.8,3.87845]
[1757002657018,2.2985,4300.9,4300.8,3.87845]
[1757002657424,0.7384,4301.2,4301.1,3.64042]
[1757002657620,0.7384,4301.2,4301.1,3.87842]
[1757002657820,0.7384,4301.2,4301.1,8.11092]
[1757002658022,0.7384,4301.2,4301.1,3.87842]
[1757002658424,0.7384,4301.2,4301.1,3.64042]
[1757002658725,0.7384,4301.2,4301.1,7.87842]
[1757002658919,0.7384,4301.2,4301.1,7.64042]
[1757002659118,0.7384,4301.2,4301.1,3.87842]
[1757002659521,5.5063,4302.1,4302.0,2.27214]
[1757002659720,5.5063,4302.1,4302.0,2.51014]
[1757002659929,3.7888,4302.5,4302.4,0.905]
[1757002660233,3.7888,4302.0,4301.9,0.0133]
[1757002660528,3.7888,4302.0,4301.9,0.44495]
[1757002660728,3.7888,4302.0,4301.9,0.68295]
[1757002661029,1.9799,4302.0,4301.9,0.68295]
[1757002661225,3.7888,4302.0,4301.9,0.41835]
[1757002661420,3.7888,4302.0,4301.9,0.65635]
[1757002661627,2.2985,4301.8,4301.7,0.44496]
[1757002661823,1.4224,4301.8,4301.7,0.68396]
[1757002662223,1.9799,4302.0,4301.9,0.41835]
[1757002662429,0.5575,4302.5,4302.1,0.0349]
[1757002662621,2.2985,4302.4,4302.3,0.44491]
[1757002663130,3.2313,4302.4,4302.3,0.44491]
[1757002663425,0.5575,4302.0,4301.9,3.62615]
[1757002663629,3.7888,4302.0,4301.9,3.62615]
[1757002663831,3.7888,4302.0,4301.9,0.239]
[1757002664832,3.2313,4301.4,4301.3,3.6262]
[1757002665026,1.4224,4301.4,4301.3,3.6528]
[1757002665229,0.5575,4301.5,4301.3,3.9001]
[1757002665832,1.4224,4301.4,4301.3,3.6528]
[1757002666132,1.4224,4301.4,4301.3,3.8918]
[1757002666328,2.2985,4301.4,4301.3,3.6528]
[1757002666528,3.2313,4301.4,4301.3,3.6262]
[1757002666722,3.2313,4301.4,4301.3,0.239]
[1757002666928,2.2985,4300.7,4300.6,0.44507]
[1757002667128,1.4224,4300.7,4300.6,0.68407]
[1757002668135,1.4224,4300.7,4300.6,2.75618315]
[1757002668739,2.3359,4300.7,4300.6,2.75618315]
[1757002668936,3.2837,4300.7,4300.6,2.50388315]
[1757002669135,3.2837,4300.7,4300.6,2.74288315]
[1757002669835,3.2837,4300.7,4300.6,2.74688315]
[1757002670334,1.4224,4300.7,4300.6,2.74688315]
[1757002670535,0.5575,4301.0,4300.9,0.42894]
[1757002670840,2.4188,4301.5,4301.4,0.42239]
[1757002671038,3.8684,4301.5,4301.4,0.66039]
[1757002671232,3.8684,4301.5,4301.4,0.65639]
[1757002672134,3.8684,4301.5,4301.4,0.41839]
[1757002672340,3.8684,4301.5,4301.4,0.66139]
[1757002672542,3.8684,4301.5,4301.4,0.66539]
[1757002673138,3.8684,4301.5,4301.4,0.65739]
[1757002673437,3.7653,4302.0,4301.9,0.41835]
[1757002673637,4.6788,4302.5,4302.4,0.4223]
[1757002673944,1.471,4302.5,4302.4,0.6653]
[1757002674235,2.9206,4302.5,4302.4,0.6653]
[1757002674630,2.9206,4302.5,4302.4,0.97266162]
[1757002674836,0.1162,4302.6,4302.4,4.17246162]
[1757002675033,0.1162,4302.6,4302.5,0.3098534]
[1757002675439,1.5658,4302.6,4302.5,0.3073534]
[1757002676335,0.1162,4302.6,4302.5,0.3098534]
[1757002677047,1.5658,4302.6,4302.5,0.3073534]
[1757002677230,1.4496,4302.6,4302.5,0.3073534]
[1757002677432,2.3631,4302.6,4302.5,0.3113534]
[1757002677942,2.3631,4302.6,4302.5,0.3153534]
[1757002678629,3.3109,4302.6,4302.5,0.3113534]
[1757002679837,3.3109,4302.6,4302.5,0.3073534]
[1757002680034,3.3109,4302.6,4302.5,0.5453534]
[1757002680230,3.3109,4302.6,4302.5,0.5493534]
[1757002680839,3.3109,4302.6,4302.5,2.38903105]
[1757002681040,3.3109,4302.6,4302.5,0.5463534]
[1757002682134,0.34457109,4303.0,4302.9,0.41825]
[1757002682334,2.3934,4303.5,4303.4,2.2507]
[1757002682533,2.3934,4303.5,4303.4,2.7970534]
[1757002682739,2.3934,4304.0,4303.9,0.41815]
[1757002682938,0.5321,4304.5,4304.4,0.41811]
[1757002683239,0.5321,4305.5,4304.6,0.41809]
[1757002683438,2.3934,4305.5,4305.4,0.41801]
[1757002683740,0.5321,4305.5,4305.4,0.9643634]
[1757002684245,1.9817,4305.5,4305.4,0.9643634]
[1757002685138,5.1895,4305.5,4305.4,0.9643634]
[1757002686544,7.97216,4305.5,4304.4,2.08068692]
[1757002686750,0.5321,4304.5,4304.2,44.31468692]
[1757002687043,3.2078,4304.8,4304.7,0.41808]
[1757002687246,3.3109,4304.8,4304.7,2.09108]
[1757002687446,3.3109,4304.8,4304.7,0.65708]
[1757002687644,3.3109,4304.8,4304.7,0.41808]
[1757002687845,3.3109,4304.8,4304.7,0.239]
[1757002688447,6.5187,4304.8,4304.7,0.239]
[1757002688650,1.8613,4304.1,4304.0,3.2078]
[1757002688844,3.3109,4304.1,4304.0,3.4468]
[1757002689043,3.3109,4304.1,4304.0,3.62594]
[1757002689442,3.3109,4304.1,4304.0,3.86494]
[1757002689643,3.3109,4304.1,4303.6,4.04046]
[1757002689644,0.5321,4304.0,4303.9,0.41815]
[1757002689951,1.4496,4303.9,4303.7,0.41817]
[1757002690148,1.4496,4303.9,4303.8,0.239]
[1757002690938,1.4496,4303.9,4303.7,0.41817]
[1757002691140,0.5321,4304.0,4303.8,0.239]
[1757002691351,1.4496,4303.9,4303.8,0.239]
[1757002692152,1.4496,4303.9,4303.5,0.41819]
[1757002692351,1.9817,4303.5,4303.4,32.073]
[1757002692546,1.9817,4303.5,4303.4,32.312]
[1757002692746,1.8613,4303.4,4303.1,0.41823]
[1757002692940,0.5321,4303.5,4303.1,0.41823]
[1757002692941,1.8613,4303.2,4303.1,0.41823]
[1757002693149,1.4496,4302.9,4302.8,0.41825]
[1757002693347,2.3631,4302.9,4302.8,3.92375]
[1757002694351,3.3109,4302.9,4302.8,3.92375]
[1757002694548,3.3109,4302.9,4302.8,0.65725]
[1757002695250,3.3109,4302.9,4302.8,0.41825]
[1757002695455,3.3109,4302.9,4302.8,0.65725]
[1757002696257,3.3109,4302.9,4302.8,0.41825]
[1757002696456,3.3109,4302.9,4302.8,0.65725]
[1757002696658,3.3109,4302.9,4302.8,0.239]
[1757002696848,7.3109,4302.9,4302.8,0.239]
[1757002697052,2.3891,4302.5,4302.4,0.41829]
[1757002697253,3.8387,4302.5,4302.4,0.65729]
[1757002697458,3.8387,4302.5,4302.0,0.41833]
[1757002697647,3.8387,4302.5,4301.5,0.5323]
[1757002697648,1.8205,4301.9,4301.5,2.08068692]
[1757002697852,1.3652,4301.8,4301.7,32.48137]
[1757002698052,1.3652,4301.8,4301.7,33.84617]
[1757002698260,1.3652,4301.8,4301.7,32.72037]
[1757002698660,1.3652,4301.8,4301.7,33.03042409]
[1757002698857,1.3652,4301.8,4301.7,31.27362409]
[1757002700362,1.3652,4301.8,4301.7,30.85525409]
[1757002700663,1.3652,4301.8,4301.7,0.54905409]
[1757002700664,3.1857,4301.8,4301.7,0.54905409]
[1757002701756,0.88694591,4301.7,4301.5,0.239]
[1757002702061,3.1857,4301.6,4301.5,0.65739]
[1757002703565,3.1857,4301.6,4301.5,0.239]
[1757002704067,3.1857,4301.6,4301.5,0.65739]
[1757002704565,6.3935,4301.6,4301.5,0.65739]
[1757002704763,6.3935,4301.6,4301.5,0.239]
[1757002704967,6.3935,4301.6,4301.5,0.65739]
[1757002705367,6.3935,4301.6,4301.5,0.239]
[1757002706974,6.3935,4301.6,4301.5,0.65739]
[1757002708475,6.3935,4301.6,4301.1,1.3648]
[1757002708676,3.1857,4301.3,4301.2,0.65742]
[1757002709078,3.1857,4301.3,4301.2,1.54372]
[1757002709376,3.1857,4301.3,4301.2,2.90852]
[1757002710177,3.1857,4301.3,4301.2,2.66952]
[1757002710370,3.1857,4301.3,4301.2,2.90852]
[1757002711276,3.1857,4301.3,4301.2,0.65742]
[1757002711672,3.1857,4301.3,4301.2,0.41842]
[1757002711877,3.1857,4301.3,4301.2,0.65642]
[1757002712476,3.1857,4301.3,4301.2,2.90752]
[1757002713773,3.1857,4301.3,4301.2,0.96184438]
[1757002713970,3.1857,4301.3,4301.2,0.54342438]
[1757002714472,3.1857,4301.3,4301.2,0.30542438]
[1757002714671,3.1857,4301.3,4301.2,0.54342438]
[1757002714871,3.1857,4301.3,4301.2,0.30542438]
[1757002715073,0.2267,4301.0,4300.9,0.238]
[1757002715275,6.6202,4301.0,4300.9,0.238]
[1757002715679,6.6202,4301.0,4300.9,0.65645]
[1757002715979,6.6202,4301.0,4300.9,1.6028]
[1757002716375,6.6202,4301.0,4300.9,0.238]
[1757002716573,6.6202,4301.0,4299.5,2.62828692]
[1757002716574,1.8205,4299.9,4299.5,2.62828692]
[1757002716778,3.1857,4299.7,4299.6,1.6038]
[1757002716983,3.1857,4299.7,4299.6,2.4901]
[1757002717171,6.3935,4299.7,4299.6,1.3648]
[1757002717576,3.1857,4299.6,4299.5,0.239]
[1757002717781,3.1857,4299.6,4299.5,1.3648]
[1757002717979,3.1857,4299.6,4299.5,1.6038]
[1757002718185,3.1857,4299.6,4299.5,1.3648]
[1757002718378,3.1857,4299.6,4299.5,1.6038]
[1757002718579,3.1857,4299.6,4299.5,2.4901]
[1757002718979,0.8852,4298.9,4298.8,3.1271]
[1757002719180,5.0283,4298.9,4298.8,3.78475]
[1757002719579,6.3935,4298.9,4298.8,0.239]
[1757002719878,6.3935,4298.9,4298.4,1.3648]
[1757002720085,6.3935,4298.9,4298.5,0.65768]
[1757002720286,6.3935,4298.9,4298.5,0.239]
[1757002720679,1.3652,4298.8,4298.6,1.3648]
[1757002720985,3.1857,4298.7,4298.6,2.66977]
[1757002721182,3.1857,4298.7,4298.6,1.3648]
[1757002721482,1.3652,4298.6,4298.5,0.41867]
[1757002721686,3.1857,4298.6,4298.5,2.66977]
[1757002721884,3.1857,4298.6,4298.5,3.21737]
[1757002722087,1.8205,4298.6,4298.5,4.09337]
[1757002722287,3.1857,4298.6,4298.5,4.09337]
[1757002722477,3.1857,4298.6,4298.5,1.78347]
[1757002722678,3.1857,4298.6,4298.5,2.66977]
[1757002722880,1.8205,4298.6,4298.5,4.09337]
[1757002723179,1.8205,4298.6,4298.5,2.2511]
[1757002723180,3.1857,4298.6,4298.5,2.2511]
[1757002723385,3.1857,4298.6,4298.5,2.4901]
[1757002725491,1.8205,4298.6,4298.5,3.9137]
[1757002726786,3.3241,4298.9,4298.8,3.54575]
[1757002727091,5.0283,4299.5,4299.4,3.54569]
[1757002727284,5.0283,4299.5,4299.4,4.08415053]
[1757002727884,3.2078,4299.5,4299.4,4.08415053]
[1757002728078,6.8668,4299.5,4299.4,0.29946053]
[1757002728284,11.09939,4299.5,4298.8,0.239]
[1757002728484,4.9986,4298.9,4298.8,0.239]
[1757002728688,6.1115,4298.9,4298.8,0.239]
[1757002730082,6.1115,4298.9,4298.8,1.5867]
[1757002730481,4.9986,4298.9,4298.8,2.5099]
[1757002730681,4.9986,4298.9,4298.8,3.4031]
[1757002733594,4.9986,4298.9,4298.8,3.82175]
[1757002733796,6.1115,4298.9,4298.8,1.5867]
[1757002734096,4.9986,4298.9,4298.8,0.239]
[1757002734595,6.1115,4298.9,4298.8,0.239]
[1757002734795,3.3086,4298.8,4298.7,0.65766]
[1757002734997,4.4215,4298.8,4298.7,0.65766]
[1757002735392,4.4215,4298.8,4298.7,0.239]
[1757002735993,4.6605,4298.8,4298.6,0.41867]
[1757002736199,2.9037,4298.7,4298.6,0.41867]
[1757002736489,1.7908,4298.7,4298.6,2.68957]
[1757002736694,2.9037,4298.7,4298.6,1.76637]
[1757002736895,2.9037,4298.7,4298.6,2.68957]
[1757002737092,1.7908,4298.7,4298.6,2.68957]
[1757002737592,1.7908,4298.7,4298.6,3.58277]
[1757002738292,4.0853,4298.9,4298.8,1.8164]
[1757002738488,4.0853,4298.9,4298.8,3.82175]
[1757002738693,4.9986,4298.9,4298.8,3.82175]
[1757002738893,3.2078,4298.9,4298.8,7.82175]
[1757002739094,3.2078,4299.5,4299.4,3.58269]
[1757002739295,3.2078,4299.5,4299.4,3.82169]
[1757002739498,1.1129,4300.5,4299.7,0.41856]
[1757002739697,0.9937,4299.8,4299.7,3.82166]
[1757002740395,0.1162,4299.8,4299.7,4.11780345]
[1757002742201,3.0199,4299.8,4299.7,0.29614345]
[1757002742500,7.49147,4299.8,4299.1,0.239]
[1757002742803,5.8153,4299.2,4298.9,1.3477]
[1757002743004,1.7908,4299.0,4298.9,1.5867]
[1757002743198,1.7908,4299.0,4298.9,2.5099]
[1757002744097,1.7908,4299.0,4298.9,3.4031]
[1757002744291,0.8775,4299.0,4298.9,3.4031]
[1757002744490,1.7908,4299.0,4298.9,3.4031]
[1757002744694,3.2078,4299.2,4299.1,3.1641]
[1757002744895,3.2078,4299.2,4299.1,3.4031]
[1757002745102,4.0853,4299.2,4299.1,3.4031]
[1757002745900,4.9986,4299.2,4299.1,2.2709]
[1757002746102,4.0853,4299.2,4299.1,3.1641]
[1757002746502,3.2078,4299.2,4299.1,3.1641]
[1757002746804,4.0853,4299.2,4299.1,3.1641]
[1757002747004,4.0853,4299.2,4299.1,3.4031]
[1757002747305,4.0853,4299.2,4299.1,1.6727]
[1757002747506,6.3187,4299.2,4299.1,1.6727]
[1757002749096,6.3187,4299.2,4298.9,2.08068692]
[1757002749296,6.3187,4299.2,4298.5,0.5427]
[1757002749297,3.1109,4298.9,4298.8,0.65765]
[1757002749502,1.3201,4298.8,4298.6,0.41867]
[1757002749700,3.1109,4298.7,4298.6,0.41867]
[1757002749908,3.1109,4298.7,4298.6,0.65767]
[1757002750099,3.1109,4298.7,4298.6,1.58087]
[1757002751404,6.3187,4298.7,4298.6,0.65767]
[1757002751999,6.3187,4298.7,4298.6,2.92857]
[1757002752401,6.3187,4298.7,4298.6,3.82177]
[1757002752899,6.3187,4298.7,4298.6,3.08397]
[1757002753197,6.3187,4298.7,4298.6,2.15494]
[1757002754309,6.3187,4298.7,4298.6,3.50264]
[1757002754502,6.3187,4298.7,4298.6,3.79731342]
[1757002755407,6.3187,4298.7,4298.6,1.55641342]
[1757002755602,6.3187,4298.7,4298.6,3.79731342]
[1757002756910,6.3187,4298.7,4298.6,1.55641342]
[1757002757110,6.3187,4298.7,4298.6,2.44961342]
[1757002757311,6.3187,4298.7,4298.6,3.79731342]
[1757002757513,3.2078,4298.7,4298.6,3.79731342]
[1757002757900,3.2078,4298.7,4298.6,3.55831342]
[1757002757901,6.384,4298.7,4298.6,3.55831342]
[1757002758108,6.384,4298.7,4298.6,1.55641342]
[1757002758614,6.384,4298.7,4298.6,2.84001342]
[1757002758912,6.384,4298.7,4298.6,3.69871342]
[1757002759812,3.2078,4298.7,4298.6,3.69873352]
[1757002764512,3.2078,4298.7,4298.6,3.45973352]
[1757002764714,3.2078,4298.7,4298.6,3.69873352]
[1757002765317,0.1163,4298.9,4298.8,3.44285]
[1757002765517,0.1163,4298.9,4298.8,3.97654352]
[1757002768513,1.0472,4298.9,4298.8,3.73754352]
[1757002768710,1.0472,4298.9,4298.8,3.97654352]
[1757002768914,0.1163,4298.9,4298.8,3.97654352]
[1757002770221,0.1163,4298.9,4298.8,4.01702829]
[1757002771022,0.1163,4298.9,4298.8,3.77802829]
[1757002771218,0.1163,4298.9,4298.8,4.01702829]
[1757002771619,0.1163,4298.9,4298.8,4.01703917]
[1757002771825,0.1163,4298.9,4298.8,3.77803917]
[1757002772017,0.1163,4298.9,4298.8,4.01703917]
[1757002774919,6.384,4299.7,4299.6,2.1655]
[1757002775118,6.384,4299.7,4299.6,5.64580406]
[1757002775417,6.384,4299.7,4299.6,6.06437406]
[1757002776123,6.384,4299.7,4299.6,4.78077406]
[1757002776328,6.384,4299.7,4299.6,6.06437406]
[1757002776630,6.384,4299.7,4299.6,3.04017406]
[1757002777326,6.384,4299.7,4299.6,5.20567406]
[1757002777524,6.384,4299.7,4299.6,6.06437406]
[1757002779531,6.384,4299.7,4299.6,5.82537406]
[1757002779732,6.384,4299.7,4299.6,6.06437406]
[1757002783040,6.384,4299.7,4299.6,3.68307406]
[1757002783246,6.384,4299.7,4299.6,3.04017406]
[1757002783437,6.384,4299.7,4299.6,2.80117406]
[1757002783642,6.384,4299.7,4299.6,3.04017406]
[1757002784545,6.384,4299.7,4299.6,2.38260406]
[1757002784748,1.4774,4298.9,4298.8,2.92304376]
[1757002785041,4.6852,4298.9,4298.8,4.44564376]
[1757002785246,4.6852,4298.9,4298.8,2.1655]
[1757002785439,3.2078,4299.4,4299.3,3.4428]
[1757002785639,3.2078,4299.4,4299.3,3.6818]
[1757002785852,3.9465,4299.4,4299.3,3.6818]
[1757002787042,3.2078,4299.4,4299.3,3.6818]
[1757002787442,3.9465,4299.4,4299.3,3.6818]
[1757002787638,3.2078,4299.4,4299.3,3.6818]
[1757002787845,3.2078,4300.0,4299.8,3.62505]
[1757002788048,3.2078,4300.5,4300.4,3.625]
[1757002788248,0.8846,4300.8,4300.7,2.22246]
[1757002788545,0.8846,4300.8,4300.7,3.86396]
[1757002789048,4.0924,4301.3,4301.2,1.804]
[1757002789240,4.0924,4301.3,4301.2,3.4455]
[1757002790340,0.1162,4303.5,4301.7,3.62487]
[1757002790341,3.2078,4302.4,4301.7,3.62487]
[1757002790647,2.3181,4301.9,4301.8,0.239]
[1757002790848,5.5259,4301.9,4301.8,0.239]
[1757002791537,5.5259,4301.9,4301.8,1.6415]
[1757002791737,0.5529,4301.8,4301.6,1.4025]
[1757002791938,1.7652,4301.7,4301.5,1.911]
[1757002792240,2.3181,4301.7,4301.6,0.239]